Cogmind - Beta 10.2 @@@ ROGUE MODE // 2021.06.07 @ 18:49:33 Player: cavemonk Result: Destroyed by C5-PVO(z) with Zionite Laser-S Performance ------------- Evolutions (3) 1500 Regions Visited (15) 3000 Robots Destroyed (91) 455 Value Destroyed (2297) 2297 Prototype IDs (38) 760 Alien Tech Used (1) 200 Bonus (188) 188 TOTAL SCORE: 8400 Bonus ------- High Alert Combat Kills 15 Aligned with FarCom 300 Met Imprinter 300 Friendly Fire -427 Cogmind --------- Core Integrity 0/700 Matter 75/300 Energy 100/100 System Corruption 0% Temperature Cool (360) Movement Core (50) Location -7/Deep Caves Parts ------- > --- POWER (1) -------- (None) > --- PROPULSION (5) --- Flying Fortress v7 > --- UTILITY (5) ------ (None) > --- WEAPON (3) ------- (None) > --- INVENTORY (4) ---- Cooled Particle Cannon Proton Missile Launcher Peak State ------------ > --- POWER ------------ Improved Ion Engine > --- PROPULSION ------- Flying Fortress v7 > --- UTILITY ---------- High-capacity Storage Unit Advanced Visual Processing Unit Advanced Transmission Jammer Light Armor Plating Long-range Tractor Beam > --- WEAPON ----------- AWS/EX-DEC Guided Plasma Cannon > --- INVENTORY -------- Humpback Humpback Humpback Advanced Recalibrator Supersonic Drone Bay Shock Bomb Launcher Deploy-a-Sentry [Rating: 80] Favorites ----------- Power Improved Ion Engine Engine Improved Ion Engine Power Core Micro Nuclear Core Propulsion Light Treads Treads Light Treads Leg Aluminum Leg Wheel Wheel Flight Unit Flying Fortress v7 Utility High-capacity Storage Unit Device Long-range Sensor Array Storage High-capacity Storage Unit Processor Advanced Signal Interpreter Hackware EX Chip 2 Protection Light Armor Plating Weapon Flak Gun Energy Gun AWS/EX-DEC Energy Cannon Guided Plasma Cannon Ballistic Gun Flak Gun Ballistic Cannon Light Cannon Launcher Grenade Launcher Special Weapon Mining Laser Slashing Weapon Great Axe Piercing Weapon Spear Special Melee Weapon Datajack Build | -11 -10 -10 -9 -9 -9 -8 -8 -8 -7 -7 -7 -7 -7 -7 -7 ------- Run | Scr Mat Min Mat Min Exi Min Mat Sto Fac Was Fac Low Low Zio Dee Slots Evolved 6 | . . . 2 . . . 2 . 2 . . . . . . Power . | . . . . . . . . . . . . . . . . Propulsion 2 | . . . . . . . 2 . . . . . . . . Utility 3 | . . . 2 . . . . . 1 . . . . . . Weapon 1 | . . . . . . . . . 1 . . . . . . Parts Attached 171 | 6 18 1 11 5 35 2 7 4 34 . 16 7 7 2 16 Power 13 | 3 . . 1 . 3 . . . 5 . . . . . 1 Engine 11 | 3 . . 1 . 3 . . . 3 . . . . . 1 Core 2 | . . . . . . . . . 2 . . . . . . Reactor . | . . . . . . . . . . . . . . . . Propulsion 27 | 2 10 1 3 . 8 . 1 . . . . 2 . . . Treads 19 | 1 6 1 3 . 8 . . . . . . . . . . Leg . | . . . . . . . . . . . . . . . . Wheel 5 | 1 4 . . . . . . . . . . . . . . Hover . | . . . . . . . . . . . . . . . . Flight 3 | . . . . . . . 1 . . . . 2 . . . Utility 60 | 1 2 . 2 1 14 2 6 2 16 . 4 3 . 1 6 Device 18 | 1 . . . . 1 . 3 1 7 . 3 1 . . 1 Storage 14 | . 2 . 1 . 7 1 1 . 1 . . . . 1 . Processor 3 | . . . . . . 1 1 . 1 . . . . . . Hackware 3 | . . . . . 3 . . . . . . . . . . Protection 22 | . . . 1 1 3 . 1 1 7 . 1 2 . . 5 Artifact . | . . . . . . . . . . . . . . . . Weapon 71 | . 6 . 5 4 10 . . 2 13 . 12 2 7 1 9 Energy Gun 11 | . 2 . 3 3 1 . . 1 1 . . . . . . Energy Cannon 12 | . . . 2 . 1 . . . 3 . 3 . 1 . 2 Ballistic Gun 20 | . 1 . . . 6 . . . 5 . 4 1 1 . 2 Ballistic Cannon 2 | . 2 . . . . . . . . . . . . . . Launcher 9 | . . . . 1 2 . . . . . . . 2 . 4 Special Weapon 1 | . 1 . . . . . . . . . . . . . . Impact Weapon . | . . . . . . . . . . . . . . . . Slashing Weapon 6 | . . . . . . . . 1 3 . 2 . . . . Piercing Weapon 9 | . . . . . . . . . . . 3 1 3 1 1 Special Melee Weapon 1 | . . . . . . . . . 1 . . . . . . Unidentified Prototypes 8 | . . . 2 . 1 . . . 4 . . 1 . . . Parts Lost 25 | . 1 . 1 1 11 . . 1 . . . . . . 10 Power 4 | . . . . . 2 . . . . . . . . . 2 Propulsion 4 | . . . 1 . 3 . . . . . . . . . . Utility 9 | . . . . . 3 . . 1 . . . . . . 5 Weapon 8 | . 1 . . 1 3 . . . . . . . . . 3 Highest Loss Streak 10 | . 1 . 1 1 7 . . 1 . . . . . . 10 Average Slot Usage (%) 83 | . 99 100 100 99 80 76 61 61 75 76 74 75 78 78 67 Engine 9 | . 14 14 11 11 9 11 9 9 3 7 7 7 7 7 7 Treads 15 | . 20 28 22 22 21 22 . . . . . . . . . Flight 2 | . . . . . . . 9 9 7 7 7 9 14 14 10 Device 2 | . 3 . . . . . 9 10 7 7 6 7 7 3 . Storage 20 | . 24 28 33 33 22 12 10 9 13 15 15 14 14 17 5 Processor 2 | . . . . . . 1 6 9 7 7 7 7 7 7 2 Hackware 2 | . . . . . 1 18 . . . . . . . . . Protection 5 | . . . 11 10 7 . 8 6 7 7 7 6 7 7 19 Energy Gun 5 | . 8 . 15 15 4 11 9 9 1 . . . . . . Energy Cannon 1 | . . . . . 1 . . . 3 . . . . . 10 Ballistic Gun 5 | . 1 . . . 5 . . . 12 15 12 17 14 14 3 Ballistic Cannon 4 | . 17 28 6 . . . . . . . . . . . . Launcher 1 | . . . . 6 4 . . . . . . . . . 5 Naked Turns . | . . . . . . . . . . . . . . . . Heaviest Build 177 | 14 75 75 112 112 177 129 85 53 77 69 72 70 75 77 87 Greatest Support 82 | 20 40 40 40 40 43 40 72 72 72 72 72 82 82 82 82 Greatest Overweight (x) 21 | 3 7 1 2 2 4 3 1 . 1 . . . . . 21 Average Overweight (x) . | . 3 1 2 2 1 2 . . . . . . . . . Largest Inventory Capacity 44 | 6 20 20 28 28 44 32 40 12 16 16 16 16 16 20 20 Average Capacity 20 | 6 16 20 28 28 22 25 13 12 15 16 16 16 16 17 8 Most Carried 32 | 6 20 20 28 28 32 27 27 12 16 16 16 16 16 20 20 Average Carried 18 | 4 14 19 24 25 17 24 12 11 15 15 15 15 16 17 8 Final Capacity 32 | 6 20 20 28 28 24 32 12 12 16 16 16 16 16 20 4 Final Carried 28 | 4 20 20 28 25 24 27 12 12 16 16 16 16 16 20 2 Class Distribution -------------------- 57% | Hauler-Mutant 38% | Mutant Dominant Class ---------------- Hauler-Mutant | -10/Materials Hauler-Mutant | -10/Mines Hauler-Mutant | -9/Materials Hauler-Mutant | -9/Mines Hauler-Mutant | -9/Exiles Hauler-Mutant | -8/Mines Mutant | -8/Materials Mutant | -8/Storage Mutant | -7/Factory Mutant | -7/Waste Mutant | -7/Factory Mutant | -7/Lower Caves Mutant | -7/Lower Caves Mutant | -7/Zion Mutant | -7/Deep Caves Resources | -11 -10 -10 -9 -9 -9 -8 -8 -8 -7 -7 -7 -7 -7 -7 -7 ----------- Run | Scr Mat Min Mat Min Exi Min Mat Sto Fac Was Fac Low Low Zio Dee Matter Collected 3213 | 281 362 318 149 40 905 67 70 40 355 . 127 326 105 18 50 Remotely 178 | . . . . . . . 70 40 68 . . . . . . Salvage Created 3480 | 138 347 101 457 181 414 210 412 182 485 . 74 248 172 . 59 Parts 201 | 15 28 6 25 10 30 12 12 9 31 . 6 11 6 . . Haulers Intercepted 5 | . 1 . 1 . . . . . 3 . . . . . . Recyclers Shooed 1 | . . . 1 . . . . . . . . . . . . Parts Field Recycled . | . . . . . . . . . . . . . . . . Retrieved Matter . | . . . . . . . . . . . . . . . . Parts Self-Destructed 5 | . . . . . . . . . . . . . 5 . . Prevented . | . . . . . . . . . . . . . . . . Kills | -11 -10 -10 -9 -9 -9 -8 -8 -8 -7 -7 -7 -7 -7 -7 -7 ------- Run | Scr Mat Min Mat Min Exi Min Mat Sto Fac Was Fac Low Low Zio Dee Combat Hostiles Destroyed 66 | . 10 5 7 7 8 6 7 3 4 . 1 2 3 . 3 Guns 33 | . 7 . 3 3 2 6 3 2 1 . 1 2 3 . . Cannons 12 | . 3 5 2 . . . . . 2 . . . . . . AOE 16 | . . . 1 4 6 . 2 . . . . . . . 3 Classes Destroyed 16 | 2 5 . 2 1 3 . . . 1 . . 2 . . . Worker 1 | . 1 . . . . . . . . . . . . . . Tunneler 5 | 4 . 1 . . . . . . . . . . . . . Hauler 5 | . 1 . 1 . . . . . 3 . . . . . . Recycler 2 | 1 . . 1 . . . . . . . . . . . . Operator 4 | . . . 1 . . . . 1 2 . . . . . . Turret 1 | . . . . . 1 . . . . . . . . . . Watcher 6 | . 3 . . . . . . . 2 . 1 . . . . Swarmer 16 | . 6 . . 4 . 3 . . . . . . 3 . . Grunt 22 | . 4 5 4 2 . 2 4 . 1 . . . . . . Brawler 2 | . . . . 1 . 1 . . . . . . . . . Researcher 1 | . . . . . . . . . . . . 1 . . . Sentry 11 | . . . 3 . . . 3 3 2 . . . . . . Programmer 2 | . . . . . . . . . 1 . 1 . . . . Zionite 8 | . . . . . 8 . . . . . . . . . . Decomposer 3 | . . . . . . . . . . . . 2 1 . . Packrat 2 | . . . . . . . . . . . . 1 1 . . Master Thief 2 | . . . . . . . . . . . . 2 . . . Assembled 10 | . . . . . 7 . . . . . . . . . 3 Best Kill Streak 6 | 2 3 2 3 4 6 3 4 2 1 . 1 2 3 . 3 Combat Bots Only 6 | . 3 2 2 4 6 3 4 1 1 . 1 2 3 . 3 Max Kills in Single Turn 3 | 1 1 1 3 2 1 2 1 1 1 . 1 1 2 . 2 Gunslinging . | . . . . . . . . . . . . . . . . Exploded 2 | . . . 1 2 1 . 1 . . . . . . . 2 Melee . | . . . . . . . . . . . . . . . . Uniques/NPCs Destroyed 4 | . . . . . 4 . . . . . . . . . . 8R-AWN (-9/Exiles) EX-BIN (-9/Exiles) EX-DEC (-9/Exiles) EX-HEX (-9/Exiles) Combat | -11 -10 -10 -9 -9 -9 -8 -8 -8 -7 -7 -7 -7 -7 -7 -7 -------- Run | Scr Mat Min Mat Min Exi Min Mat Sto Fac Was Fac Low Low Zio Dee Damage Taken 6818 | . 375 282 255 286 1758 20 231 45 80 . 62 35 103 . 3286 Core 1073 | . 22 23 . 37 223 . 46 . . . . 15 13 . 694 Absorbed by Shields 21 | . . . . . . . . . 21 . . . . . . Core Remaining (%) 77 | 100 . 82 . . . 35 . 91 . . . . . . . Volleys Fired 268 | 7 46 25 18 10 92 . . . 33 . 6 7 14 . 10 Largest 3 | 2 2 2 2 2 2 . . . 2 . 3 3 3 . 3 Hottest 180 | 60 100 70 116 108 120 . . . 120 . 90 84 84 . 180 Shots Fired 560 | 14 91 50 36 17 197 9 26 9 38 . 11 22 20 . 20 Gun 363 | 14 60 . 25 14 159 9 26 9 8 . 7 22 10 . . Cannon 173 | . 30 50 11 . 30 . . . 30 . 4 . 7 . 11 Launcher 23 | . . . . 3 8 . . . . . . . 3 . 9 Special 1 | . 1 . . . . . . . . . . . . . . Kinetic 262 | 7 45 50 10 . 108 . . . 3 . 7 22 10 . . Thermal 92 | . 1 . 2 6 30 . . . 31 . 4 . 7 . 11 Explosive 11 | . . . . 3 8 . . . . . . . . . . Electromagnetic 195 | 7 45 . 24 8 51 9 26 9 4 . . . 3 . 9 Robot Hit Streak 33 | 6 12 9 12 20 33 15 16 7 8 . . . 3 . 1 Robot Miss Streak 8 | 1 4 3 1 2 8 1 2 1 2 . 6 . 7 . 6 Penetration Max . | . . . . . . . . . . . . . . . . Secondary Targets 5 | . 3 . 1 1 . . . . . . . . . . . Max Gunslinging Chain 1 | . 1 . 1 1 . . . . . . . . . . . Autonomous 99 | . . . . . 51 9 26 9 4 . . . . . . Shots Hit Robots 383 | 11 57 34 33 6 162 9 26 9 18 . 2 6 5 . 5 Core Hits 225 | 6 19 7 16 10 73 10 13 6 16 . 5 22 12 . 10 Critical Hits 7 | . 1 2 1 . 2 . . . 1 . . . . . . Critical Kills 1 | . . . 1 . . . . . . . . . . . . Critical Parts Destroyed 6 | . 1 2 . . 2 . . . 1 . . . . . . Melee Attacks 64 | . . . . . . . . 1 23 . 19 9 3 . 9 Impact . | . . . . . . . . . . . . . . . . Slashing 26 | . . . . . . . . 1 21 . 4 . . . . Piercing 36 | . . . . . . . . . . . 15 9 3 . 9 Sneak Attacks 13 | . . . . . . . . . 5 . . 6 2 . . Combat Hostiles . | . . . . . . . . . . . . . . . . Follow-up Attacks . | . . . . . . . . . . . . . . . . Damage Inflicted 10139 | 114 936 676 704 487 2866 253 775 251 1055 . 186 1225 348 . 263 Guns 4834 | 114 528 . 377 191 1530 207 654 251 162 . 115 563 142 . . Cannons 2539 | . 289 615 157 . 962 . . . 408 . . . . . 108 Explosions 1137 | . 119 . 109 296 374 . 121 . . . . . 35 . 83 Melee 1456 | . . . . . . . . . 485 . 71 662 171 . 67 Ramming 173 | . . 61 61 . . 46 . . . . . . . . 5 Kinetic 3470 | 49 447 615 139 . 1346 . . . 54 . 115 563 142 . . Thermal 1924 | . 119 . 127 79 962 . 121 . 408 . . . . . 108 Explosive 641 | . . . . 270 371 . . . . . . . . . . Electromagnetic 2475 | 65 370 . 377 138 187 207 654 251 108 . . . 35 . 83 Impact . | . . . . . . . . . . . . . . . . Slashing 485 | . . . . . . . . . 485 . . . . . . Piercing 971 | . . . . . . . . . . . 71 662 171 . 67 Highest Corruption 10 | . . . . . 5 5 . . . 7 10 10 10 10 . Average Corruption 6 | . . . . . 4 5 . . . 7 7 10 10 10 . Corruption Purged . | . . . . . . . . . . . . . . . . Effects 138 | . . . . . 37 37 . . . 2 25 19 17 1 . Message Errors 26 | . . . . . 9 9 . . . 1 6 . . 1 . Matter Fused 31 | . . . . . 13 7 . . . . 4 4 3 . . Heat Flow Errors 22 | . . . . . 7 8 . . . . 4 3 . . . Energy Discharges 14 | . . . . . 3 7 . . . . 2 1 1 . . Data Loss (minor) 16 | . . . . . 3 4 . . . 1 4 2 2 . . Data Loss (major) 6 | . . . . . 2 2 . . . . 1 . 1 . . Misfires 3 | . . . . . . . . . . . 1 1 1 . . Misdirections 11 | . . . . . . . . . . . . 4 7 . . Targeting Errors 8 | . . . . . . . . . . . 3 4 1 . . Weapon Failures 1 | . . . . . . . . . . . . . 1 . . Overload Shots 6 | . . . . . . . . . . . 4 . . . 2 Effects 1 | . . . . . . . . . . . . . . . 1 Heat Surge 1 | . . . . . . . . . . . . . . . 1 Overflow Damage 292 | . 20 8 10 35 29 . . . 17 . . 173 . . . Projectiles 44 | . 4 5 1 . 17 . . . 17 . . . . . . Explosions 72 | . 16 . 9 35 12 . . . . . . . . . . Melee 176 | . . 3 . . . . . . . . . 173 . . . Knockbacks 12 | . 4 5 2 . . 1 . . . . . . . . . Impact 2 | . . 1 . . . 1 . . . . . . . . . Kinetic 10 | . 4 4 2 . . . . . . . . . . . . Secondary . | . . . . . . . . . . . . . . . . Self-Inflicted Damage 264 | . 9 . 111 51 37 . 54 . . . . . . . 2 Shots 7 | . 1 . 2 2 1 . 1 . . . . . . . . Rammed 12 | . . 3 4 . . 4 . . . . . . . . 1 Targets Rammed 13 | . . 4 4 . . 4 . . . . . . . . 1 Kicked . | . . . . . . . . . . . . . . . . Crushed 1 | . . 1 . . . . . . . . . . . . . Highest Temperature 709 | . 180 168 108 422 304 261 . . 252 . 230 254 81 . 709 Average Temperature 99 | . 48 64 38 209 91 117 . . 84 . 71 107 34 . 199 Received Heat Transfer 1442 | . 120 162 66 102 . 9 45 9 38 . . . . . 891 Effects 18 | . . . . 2 . 1 . . . . . . . . 15 Shutdowns 2 | . . . . . . . . . . . . . . . 2 Energy Bleed 2 | . . . . 1 . . . . . . . . . . 1 Interference 3 | . . . . . . 1 . . . . . . . . 2 Matter Decay 5 | . . . . . . . . . . . . . . . 5 Short Circuit 4 | . . . . 1 . . . . . . . . . . 3 Damage (major) 1 | . . . . . . . . . . . . . . . 1 Damage (core) 1 | . . . . . . . . . . . . . . . 1 Siege Activations . | . . . . . . . . . . . . . . . . Robots Corrupted 5 | . . . 1 . . . 2 1 1 . . . . . . Combat Hostiles 5 | . . . 1 . . . 2 1 1 . . . . . . Parts Fried 18 | . . . 6 . 7 . 5 . . . . . . . . Impact Corruptions 1 | . . 1 . . . . . . . . . . . . . Robots Melted 1 | . . . . . 1 . . . . . . . . . . Combat Hostiles . | . . . . . . . . . . . . . . . . Parts Melted 19 | . . . . . 17 . . . 2 . . . . . . Heat Transferred 3706 | . 200 . 137 161 2160 . 100 . 880 . . . . . 68 Parts Sabotaged . | . . . . . . . . . . . . . . . . Parts Stolen 2 | . . . . . . . . . . . . 2 . . . Parts Stripped . | . . . . . . . . . . . . . . . . Power Chain Reactions 8 | . 2 . 1 1 1 . 2 . 1 . . . . . . Missiles Intercepted . | . . . . . . . . . . . . . . . . Alert | -11 -10 -10 -9 -9 -9 -8 -8 -8 -7 -7 -7 -7 -7 -7 -7 ------- Run | Scr Mat Min Mat Min Exi Min Mat Sto Fac Was Fac Low Low Zio Dee Peak Influence 544 | 25 283 101 170 201 . 140 339 321 345 91 544 . . . . Initial 145 | . 16 21 . 21 . . . 143 145 76 63 . . . . Average 111 | 15 132 40 53 153 . 25 137 165 235 82 248 . . . . Maximum Alert Level 2 | . 1 . . 1 . . 1 1 1 . 2 . . . . Low Security (%) 77 | 100 78 100 100 48 . 100 66 57 25 100 53 . . . . Level 1 19 | . 21 . . 51 . . 33 42 74 . 16 . . . . Level 2 2 | . . . . . . . . . . . 30 . . . . Level 3 . | . . . . . . . . . . . . . . . . Level 4 . | . . . . . . . . . . . . . . . . Level 5 . | . . . . . . . . . . . . . . . . High Security . | . . . . . . . . . . . . . . . . Max Security . | . . . . . . . . . . . . . . . . Squads Dispatched 11 | . . . 2 . . . 1 1 4 . 3 . . . . Investigation 3 | . . . . . . . . . 2 . 1 . . . . Extermination 3 | . . . . . . . . . 1 . 2 . . . . Reinforcement 5 | . . . 2 . . . 1 1 1 . . . . . . Assault . | . . . . . . . . . . . . . . . . Garrison . | . . . . . . . . . . . . . . . . Intercept . | . . . . . . . . . . . . . . . . Construction Impeded . | . . . . . . . . . . . . . . . . Haulers Reinforced 1 | . . . . . . . . . 1 . . . . . . Stealth | -11 -10 -10 -9 -9 -9 -8 -8 -8 -7 -7 -7 -7 -7 -7 -7 --------- Run | Scr Mat Min Mat Min Exi Min Mat Sto Fac Was Fac Low Low Zio Dee Distress Signals 6 | . 2 . 2 . . . . 1 . . 1 . . . . Communications Jammed . | . . . . . . . . . . . . . . . . Distress Signals . | . . . . . . . . . . . . . . . . Times Spotted 131 | . 20 5 10 9 17 4 16 12 14 3 7 6 4 . 4 Peak Tracking Total 9 | . 5 2 2 4 9 3 6 5 5 3 4 3 3 . 3 Tactical Retreats 16 | . . . . . 5 . 2 4 3 . 2 . . . . Traps | -11 -10 -10 -9 -9 -9 -8 -8 -8 -7 -7 -7 -7 -7 -7 -7 ------- Run | Scr Mat Min Mat Min Exi Min Mat Sto Fac Was Fac Low Low Zio Dee Traps Triggered 6 | . . . . . . . . . 4 . 2 . . . . Indirectly . | . . . . . . . . . . . . . . . . Trap Hack Attempts . | . . . . . . . . . . . . . . . . Triggered . | . . . . . . . . . . . . . . . . Disarmed . | . . . . . . . . . . . . . . . . Reprogrammed . | . . . . . . . . . . . . . . . . Reused . | . . . . . . . . . . . . . . . . Traps Extracted . | . . . . . . . . . . . . . . . . Installed . | . . . . . . . . . . . . . . . . Triggered . | . . . . . . . . . . . . . . . . Machines | -11 -10 -10 -9 -9 -9 -8 -8 -8 -7 -7 -7 -7 -7 -7 -7 ---------- Run | Scr Mat Min Mat Min Exi Min Mat Sto Fac Was Fac Low Low Zio Dee Machines Disabled 20 | . 3 . 2 2 9 . . . 1 . 1 . 1 . 1 Max in Single Turn 2 | . 1 . 2 2 2 . . . 1 . 1 . 1 . 1 Machines Sabotaged . | . . . . . . . . . . . . . . . . Garrisons Compromised . | . . . . . . . . . . . . . . . . Overloaded Fab Kills 2 | . . . . . . . . . 2 . . . . . . Fab Network Shutdowns 1 | . . . . . . . . . . . 1 . . . . Hacking | -11 -10 -10 -9 -9 -9 -8 -8 -8 -7 -7 -7 -7 -7 -7 -7 --------- Run | Scr Mat Min Mat Min Exi Min Mat Sto Fac Was Fac Low Low Zio Dee Machines Accessed 59 | . 6 1 3 . 1 . 3 7 21 . 16 . . 1 . Terminals 39 | . 5 1 3 . . . 1 6 13 . 10 . . . . Fabricators 7 | . . . . . . . . . 6 . 1 . . . . Repair Stations 2 | . . . . . . . . 1 . . 1 . . . . Recycling Units 2 | . 1 . . . . . . . 1 . . . . . . Scanalyzers 5 | . . . . . . . 2 . 1 . 2 . . . . Garrison Access 2 | . . . . . . . . . . . 2 . . . . Total Hacks 162 | . 20 5 7 . 1 . 10 16 58 . 38 . . 7 . Successful 81 | . 12 2 1 . 1 . 5 10 28 . 15 . . 7 . Failed 81 | . 8 3 6 . . . 5 6 30 . 23 . . . . Catastrophic 18 | . 1 1 2 . . . 1 2 3 . 8 . . . . Database Lockouts . | . . . . . . . . . . . . . . . . Manual 74 | . 9 5 5 . 1 . . 8 26 . 15 . . 5 . Terminals 101 | . 17 5 7 . . . 4 14 33 . 21 . . . . Fabricators 23 | . . . . . . . . . 19 . 4 . . . . Repair Stations 4 | . . . . . . . . 2 . . 2 . . . . Recycling Units 4 | . 3 . . . . . . . 1 . . . . . . Scanalyzers 19 | . . . . . . . 6 . 5 . 8 . . . . Garrison Access 3 | . . . . . . . . . . . 3 . . . . Terminal Hacks 40 | . 6 2 1 . 1 . . 8 10 . 5 . . 7 . Part Schematic 14 | . . 2 . . . . . 1 4 . . . . 7 . Robot Analysis 2 | . 2 . . . . . . . . . . . . . . Prototype ID Bank 2 | . . . . . . . . . 2 . . . . . . Open Door 2 | . . . . . . . . 2 . . . . . . . Level Access Points 1 | . . . . . . . . 1 . . . . . . . Branch Access Points 3 | . 1 . . . . . . . 1 . 1 . . . . Terminal Index 3 | . 1 . . . . . . . 1 . 1 . . . . Fabricator Index 1 | . . . . . . . . . 1 . . . . . . Alert Level 1 | . . . . . . . . 1 . . . . . . . Unreport Threat 4 | . . . . . . . . 2 . . 2 . . . . Hauler Manifests 4 | . 1 . 1 . . . . . 1 . 1 . . . . Zone Layout 2 | . 1 . . . . . . 1 . . . . . . . EX-Prototype ID Bank 1 | . . . . . 1 . . . . . . . . . . Fabricator Hacks 10 | . . . . . . . . . 9 . 1 . . . . Load Schematic 4 | . . . . . . . . . 4 . . . . . . Build 6 | . . . . . . . . . 5 . 1 . . . . Repair Station Hacks 3 | . . . . . . . . 2 . . 1 . . . . Scan Component 2 | . . . . . . . . 1 . . 1 . . . . Repair 1 | . . . . . . . . 1 . . . . . . . Recycling Unit Hacks 3 | . 3 . . . . . . . . . . . . . . Process 1 | . 1 . . . . . . . . . . . . . . Retrieve Matter 2 | . 2 . . . . . . . . . . . . . . Scanalyzer 17 | . . . . . . . 5 . 4 . 8 . . . . Insert Component 9 | . . . . . . . 3 . 2 . 4 . . . . Analyze 8 | . . . . . . . 2 . 2 . 4 . . . . Garrison Access Hacks . | . . . . . . . . . . . . . . . . Unauthorized Hacks 8 | . 3 . . . . . . . 5 . . . . . . Terminals 6 | . 3 . . . . . . . 3 . . . . . . Track 1 | . 1 . . . . . . . . . . . . . . Botnet 4 | . 1 . . . . . . . 3 . . . . . . Operators 1 | . 1 . . . . . . . . . . . . . . Fabricators 1 | . . . . . . . . . 1 . . . . . . Overload 1 | . . . . . . . . . 1 . . . . . . Repair Stations . | . . . . . . . . . . . . . . . . Recycling Units 1 | . . . . . . . . . 1 . . . . . . Mask 1 | . . . . . . . . . 1 . . . . . . Scanalyzers . | . . . . . . . . . . . . . . . . Garrison Access . | . . . . . . . . . . . . . . . . Data Cores Recovered 2 | . . . . . . . . 1 1 . . . . . . Used 2 | . . . . . . . . 1 1 . . . . . . Hacking Detections 54 | . 5 1 3 . . . 3 6 20 . 16 . . . . Full Trace Events 1 | . . . . . . . . . . . 1 . . . . Feedback Events . | . . . . . . . . . . . . . . . . Feedback Blocked . | . . . . . . . . . . . . . . . . Robot Schematics Acquired . | . . . . . . . . . . . . . . . . Robots Built . | . . . . . . . . . . . . . . . . Matter . | . . . . . . . . . . . . . . . . Time . | . . . . . . . . . . . . . . . . Total Robot Build Rating . | . . . . . . . . . . . . . . . . Part Schematics Acquired 21 | . . 2 . . . . 1 1 6 . 4 . . 7 . Parts Built 6 | . . . . . . . . . 4 . 2 . . . . Matter 1008 | . . . . . . . . . 774 . 234 . . . . Time 459 | . . . . . . . . . 342 . 117 . . . . Total Part Build Rating 28 | . . . . . . . . . 14 . 14 . . . . Parts Repaired 1 | . . . . . . . . 1 . . . . . . . Time 43 | . . . . . . . . 43 . . . . . . . Parts Recycled . | . . . . . . . . . . . . . . . . Recycled Matter 52 | . 52 . . . . . . . . . . . . . . Retrieved Matter 52 | . 52 . . . . . . . . . . . . . . Retrieved Components . | . . . . . . . . . . . . . . . . Parts Scanalyzed 7 | . . . . . . . 1 . 2 . 4 . . . . Part Schematics Acquired 7 | . . . . . . . 1 . 2 . 4 . . . . Parts Damaged 1 | . . . . . . . . . . . 1 . . . . Bothacking | -11 -10 -10 -9 -9 -9 -8 -8 -8 -7 -7 -7 -7 -7 -7 -7 ------------ Run | Scr Mat Min Mat Min Exi Min Mat Sto Fac Was Fac Low Low Zio Dee Used RIF Installer . | . . . . . . . . . . . . . . . . Robots Hacked 1 | . . . . . . . . . 1 . . . . . . Non-combat 1 | . . . . . . . . . 1 . . . . . . Combat . | . . . . . . . . . . . . . . . . Robot Hacks Applied 2 | . . . . . . . . . 2 . . . . . . find_chute 2 | . . . . . . . . . 2 . . . . . . Relay Couplers Released . | . . . . . . . . . . . . . . . . Robots Rewired . | . . . . . . . . . . . . . . . . Allies Hacked . | . . . . . . . . . . . . . . . . Hacks Repelled . | . . . . . . . . . . . . . . . . Allies | -11 -10 -10 -9 -9 -9 -8 -8 -8 -7 -7 -7 -7 -7 -7 -7 -------- Run | Scr Mat Min Mat Min Exi Min Mat Sto Fac Was Fac Low Low Zio Dee Total Allies . | . . . . . . . . . . . . . . . . Largest Group . | . . . . . . . . . . . . . . . . Highest-Rated Group . | . . . . . . . . . . . . . . . . Highest-Rated Ally . | . . . . . . . . . . . . . . . . Total Orders . | . . . . . . . . . . . . . . . . Ally Attacks . | . . . . . . . . . . . . . . . . Total Damage . | . . . . . . . . . . . . . . . . Kills . | . . . . . . . . . . . . . . . . Allies Corrupted . | . . . . . . . . . . . . . . . . Allies Melted . | . . . . . . . . . . . . . . . . Intel | -11 -10 -10 -9 -9 -9 -8 -8 -8 -7 -7 -7 -7 -7 -7 -7 ------- Run | Scr Mat Min Mat Min Exi Min Mat Sto Fac Was Fac Low Low Zio Dee Robot Analysis Total 2 | . 2 . . . . . . . . . . . . . . Derelict Logs Recovered 5 | . . 2 . . . . . . . . . 1 . 2 . Drone Launches . | . . . . . . . . . . . . . . . . Drone Recoveries . | . . . . . . . . . . . . . . . . Exploration | -11 -10 -10 -9 -9 -9 -8 -8 -8 -7 -7 -7 -7 -7 -7 -7 ------------- Run | Scr Mat Min Mat Min Exi Min Mat Sto Fac Was Fac Low Low Zio Dee Turns Passed 12897 | 118 1014 1318 1059 183 3689 1644 148 212 1313 73 762 291 296 410 367 Spaces Moved 10185 | 43 456 677 461 75 1601 803 211 305 1931 139 1096 497 568 960 362 Core 4 | 1 . . . . . . . . . . . . . . 3 Treads 3806 | . 189 677 461 75 1601 803 . . . . . . . . . Legs 5 | 5 . . . . . . . . . . . . . . . Wheels 304 | 37 267 . . . . . . . . . . . . . . Hover . | . . . . . . . . . . . . . . . . Flight 6066 | . . . . . . . 211 305 1931 139 1096 497 568 960 359 Fastest Speed 42 | 90 90 180 200 200 160 200 50 50 50 50 50 42 42 42 42 Average Speed 105 | 96 153 180 200 200 198 202 50 50 50 50 50 46 42 42 54 Slowest Speed 1100 | 200 180 180 200 200 240 220 150 50 150 50 50 50 42 42 1100 Overloaded Moves . | . . . . . . . . . . . . . . . . Propulsion Burnouts . | . . . . . . . . . . . . . . . . Robots Hopped 18 | . . . . . . . 1 4 9 . 4 . . . . Cave-ins Triggered . | . . . . . . . . . . . . . . . . Exploration Rate (%) 55 | 3 60 100 31 15 90 99 22 60 47 89 30 59 63 88 26 Regions Visited 15 Branch Regions 9 Pre-discovered Areas 3 | . . . . . . . . . . . . 1 . 2 . Known Exits Taken 7 | . 1 . . . . 1 . 1 . . 1 1 1 1 . Unknown Exits Taken 6 | 1 . 1 1 1 1 . 1 . . . . . . . . Scrap Searched 6 | . . 2 . . . 1 . . . . . 1 1 1 . Spaces Dug 47 | . 1 . . . . . . 1 22 . 15 3 3 . 2 Terrain Destroyed 144 | . 3 . 27 22 33 . 9 1 25 . 15 3 3 . 3 Melee 24 | . . . . . . . . 1 7 . 11 3 . . 2 Projectile 27 | . 1 . . . . . . . 18 . 4 . 3 . 1 AOE 93 | . 2 . 27 22 33 . 9 . . . . . . . . Terrain Rammed . | . . . . . . . . . . . . . . . . Walls Destroyed . | . . . . . . . . . . . . . . . . Machines Disabled . | . . . . . . . . . . . . . . . . Actions | -11 -10 -10 -9 -9 -9 -8 -8 -8 -7 -7 -7 -7 -7 -7 -7 --------- Run | Scr Mat Min Mat Min Exi Min Mat Sto Fac Was Fac Low Low Zio Dee Total 11765 | 107 673 725 563 92 1977 816 257 358 2201 142 1266 528 598 966 496 Wait 762 | 43 123 15 34 . 179 . 20 48 111 . 117 . 7 . 65 Move 10135 | 42 455 676 460 74 1600 802 208 296 1913 138 1087 496 567 959 362 Hop 18 | . . . . . . . 1 4 9 . 4 . . . . Pick Up 148 | 2 22 2 20 . 38 5 4 2 23 2 6 4 . 3 15 Fast Attach 62 | 3 2 . 3 1 16 1 1 2 23 . 3 3 . 2 2 Attach 46 | 3 3 1 3 3 10 1 6 2 5 . 3 3 . . 3 Detach 16 | 1 1 . 1 . 1 . 2 1 5 . 3 1 . . . Swap 64 | . 13 . 5 1 9 . . . 6 . 10 2 7 . 11 Drop 156 | 6 8 2 15 3 32 3 15 2 37 2 8 3 . 2 18 Fire 268 | 7 46 25 18 10 92 . . . 33 . 6 7 14 . 10 Melee 64 | . . . . . . . . 1 23 . 19 9 3 . 9 Ram 1 | . . . . . . . . . . . . . . . 1 Kick . | . . . . . . . . . . . . . . . . Crush 12 | . . 4 4 . . 4 . . . . . . . . . Escape Stasis 13 | . . . . . . . . . 13 . . . . . . Rewire . | . . . . . . . . . . . . . . . . Trap . | . . . . . . . . . . . . . . . . Miscellaneous . | . . . . . . . . . . . . . . . . Route ------- -11/Scrapyard -10/Materials (discovered 4 exits: *Mat x2 / *Min x2) -10/Mines (discovered 2 exits: *Mat x2) -9/Materials (discovered 2 exits: Mat / [*Min]) -9/Mines -9/Exiles -8/Mines (discovered 2 exits: *Mat x2) -8/Materials -8/Storage (discovered 2 exits: *Fac / [Rec]) -7/Factory (discovered 4 exits: *Fac x2 / *Low x2) -7/Waste -7/Factory (discovered 3 exits: *Fac / *Low x2) -7/Lower Caves -7/Lower Caves (discovered 2 exits: *Fac / *Zio) -7/Zion (discovered 2 exits: *Dee / [*Pro]) -7/Deep Caves History --------- Turn | Location | Event 8 | -11/Scrapyard | Discovered new exit (range 3) 119 | -11/Scrapyard | Entered Materials 122 | -10/Materials | Identified exit to Mines 313 | -10/Materials | Build established: Mutant 588 | -10/Materials | Discovered new exit (range 14) 655 | -10/Materials | Build established: Hauler-Mutant 939 | -10/Materials | Discovered new exit (range 15) 1133 | -10/Materials | Entered Mines 1159 | -10/Mines | Met a Derelict bent on vengeance 1532 | -10/Mines | Learned Materials terminal intel 1572 | -10/Mines | Learned location of 1 exit from Materials 1611 | -10/Mines | Discovered new exit (range 15) 2115 | -10/Mines | Discovered new exit (range 7) 2451 | -10/Mines | Entered Materials 2451 | -9/Materials | Evolved 2 slots: Utility x2 2452 | -9/Materials | Identified exit to Materials 2453 | -9/Materials | Loaded intel: 12 terminal locations 2967 | -9/Materials | Discovered new exit (range 12) 3510 | -9/Materials | Entered Mines 3655 | -9/Mines | Deemed a non-threat by the Exiles lab entrance 3657 | -9/Mines | Discovered new exit (range 5) 3693 | -9/Mines | Entered Exiles 3744 | -9/Exiles | Met 8R-AWN 3778 | -9/Exiles | Met EX-HEX 3848 | -9/Exiles | Met EX-BIN 3948 | -9/Exiles | Aligned with FarCom system 3950 | -9/Exiles | Given EX-Vault access code 4000 | -9/Exiles | Opened EX-Vault 4014 | -9/Exiles | Found Gui. Plasma Cannon 4019 | -9/Exiles | Found Flying Fortress v7 4027 | -9/Exiles | Found Supersonic Drone Bay 4070 | -9/Exiles | Warned to stay clear of 0b10 Research branches 4140 | -9/Exiles | Met EX-DEC 4266 | -9/Exiles | Visited The Gauntlet 4869 | -9/Exiles | Build established: Mutant 5087 | -9/Exiles | Attacked by the Exiles 5238 | -9/Exiles | Lost 3 parts (3u) 5316 | -9/Exiles | Core integrity fell below 50% 5329 | -9/Exiles | Lost 7 parts (1p3n3w) 5340 | -9/Exiles | Destroyed 8R-AWN 5635 | -9/Exiles | Destroyed EX-BIN 5728 | -9/Exiles | Destroyed EX-DEC 5756 | -9/Exiles | Found Prototype Energy Gun 5758 | -9/Exiles | Identified AWS/EX-DEC 5772 | -9/Exiles | Found Deploy-a-Sentry 5832 | -9/Exiles | Destroyed EX-HEX 6327 | -9/Exiles | Build established: Hauler-Mutant 6871 | -9/Exiles | Discovered new exit (range 14) 7382 | -9/Exiles | Stole four prototypes: Flying Fortress v7, Supersonic Drone Bay, Gui. Plasma Cannon, Deploy-a-Sentry 7382 | -9/Exiles | Entered Mines 7694 | -8/Mines | Discovered exit to Materials (range 6) 8470 | -8/Mines | Discovered exit to Materials (range 8) 9026 | -8/Mines | Entered Materials 9026 | -8/Materials | Evolved 2 slots: Propulsion x2 9064 | -8/Materials | Discovered new exit (range 11) 9174 | -8/Materials | Entered Storage 9177 | -8/Storage | Identified exit to Factory 9245 | -8/Storage | Discovered new exit (range 18) 9328 | -8/Storage | Build established: Mutant 9371 | -8/Storage | Repaired Broken Adv. Transmission Jammer 9386 | -8/Storage | Entered Factory 9386 | -7/Factory | Evolved 2 slots: Utility x1, Weapon x1 9664 | -7/Factory | Identified exit to Lower Caves 9982 | -7/Factory | Discovered new exit (range 7) 10123 | -7/Factory | Fabricated Lrn. Sensor Array (x1) 10134 | -7/Factory | Discovered new exit (range 9) 10208 | -7/Factory | Fabricated Lrn. Sensor Array? 10374 | -7/Factory | Fabricated Imp. VTOL Module? 10646 | -7/Factory | Fabricated Imp. VTOL Module? 10699 | -7/Factory | Sucked down chute 10699 | -7/Factory | Entered Waste 10705 | -7/Waste | Spotted C-40 Crusher 10714 | -7/Waste | EMP discharged 10718 | -7/Waste | Spotted C-40 Crusher 10719 | -7/Waste | Spotted C-40 Crusher 10752 | -7/Waste | Spotted C-40 Crusher 10761 | -7/Waste | Spotted C-40 Crusher 10762 | -7/Waste | Spotted C-40 Crusher 10767 | -7/Waste | Discovered new exit (range 10) 10771 | -7/Waste | Identified exit to Factory 10772 | -7/Waste | Entered Factory 11145 | -7/Factory | Fabricated Impulse Thruster (x2) 11177 | -7/Factory | Local fabrication network quarantined 11416 | -7/Factory | Discovered new exit (range 9) 11527 | -7/Factory | System corruption reached 10% 11534 | -7/Factory | Entered Lower Caves 11534 | -7/Lower Caves | Spotted G3-ZD3(f) 11534 | -7/Lower Caves | Spotted 2T-VGU(f) 11534 | -7/Lower Caves | Spotted BS-YI3(f) 11535 | -7/Lower Caves | Encountered a Master Thief 11535 | -7/Lower Caves | Encountered a Master Thief 11535 | -7/Lower Caves | Encountered a Master Thief 11540 | -7/Lower Caves | Supersonic Drone Bay stolen by Master Thief 11540 | -7/Lower Caves | Destroyed G3-ZD3(f) 11545 | -7/Lower Caves | Impulse Thruster stolen by Master Thief 11556 | -7/Lower Caves | Destroyed 2T-VGU(f) 11589 | -7/Lower Caves | Encountered a Warlord checkpoint 11686 | -7/Lower Caves | Learned location of Extension (-6) 11698 | -7/Lower Caves | Found Alien Artifact 11698 | -7/Lower Caves | Identified Core Expander 11698 | -7/Lower Caves | Installed Core Expander, added new Propulsion slot 11813 | -7/Lower Caves | Discovered new exit (range 15) 11825 | -7/Lower Caves | Identified exit to Lower Caves 11825 | -7/Lower Caves | Entered another Lower Caves area 11843 | -7/Lower Caves | Discovered new exit (range 11) 11847 | -7/Lower Caves | Identified exit to Factory 11913 | -7/Lower Caves | Encountered a Warlord checkpoint 12013 | -7/Lower Caves | Acquired the password to a Derelict Tinkerer's latest research 12119 | -7/Lower Caves | Discovered new exit (range 8) 12121 | -7/Lower Caves | Identified exit to Zion 12121 | -7/Lower Caves | Entered Zion 12142 | -7/Zion | System corruption cleaned by Quarantine Array 12163 | -7/Zion | Acquired unknown access codes intercepted by a Zionite 12164 | -7/Zion | Discovered new exit (range 10) 12247 | -7/Zion | Found CR-A16's Pointy Stick 12260 | -7/Zion | Learned Factory terminal intel 12522 | -7/Zion | Opened final containment barrier to the Deep Caves 12530 | -7/Zion | Discovered new exit (range 3) 12530 | -7/Zion | Saw the warning signs outside the Deep Caves entrance 12531 | -7/Zion | Identified exit to Deep Caves 12531 | -7/Zion | Entered Deep Caves 12824 | -7/Deep Caves | Attacked by Z-Imprinter 12881 | -7/Deep Caves | Core integrity fell below 50% 12895 | -7/Deep Caves | Core integrity fell below 20% 12898 | -7/Deep Caves | Destroyed by C5-PVO(z) with Zionite Laser-S Last Messages --------------- 12869_ Overheating: Matter decay (-7). 12871_ Power failure, Cld. Deuterium Engine shutdown. 12871_ Lyr. Light Armor Plating destroyed. 12874_ Overheating: System interference. 12874_ Proton Missile Launcher temporarily disabled. 12874_ Hrd. Heavy Armor Plating destroyed. 12876_ Proton Missile Launcher destroyed. 12876_ Imp. Medium Armor Plating destroyed. 12877_ Overheating: System interference. 12877_ Cld. Particle Cannon temporarily disabled. 12877_ The unstable cave ceiling collapses. 12877_ Cld. Particle Cannon destroyed. 12878_ Overheating: Matter decay (-19). 12880_ Cld. Deuterium Engine permanently disabled. 12880_ Overheating: Short circuit. 12884_ Imp. Medium Armor Plating destroyed. 12888_ Overheating: Matter decay (-15). 12890_ Broken Cld. Deuterium Engine destroyed. 12897_ CR-A16's Pointy Stick destroyed. 12897_ Slammed into Z-Imprinter. Map ----- +----------------------------------------------------+ | ??" ############### | | ??" ###??????####### | | ??" ##????????# | | ?"" #?????????# | | " ##????????# #### | | [#???????## ### # | | =[#?????### # | | [=#???### # | | ##???# ## | | " ##???# ## | | ?"" #???# ### ## | | #???# ##?# #### | | "" ##???# #?# ##??# | | """ ##????######## #??# | | ?""" ##?????????## ##?# | | ??"" ##???????? #???# | | ??"" #?????? #????# | | ??" #????? #?????#### | | ?" ;#????? ## ?????????? | | ?? #??????#??# ???####### | | ??" ##????????# ???# | | ???? ;##?????### ???# | | ?????? ;;#?????# ???# #### | | ????????? ###????# #### ##?# | | ?????????? z;##????# #?# | | ?????????? @ ##????# #?# | | ?????????? I #?????##### ###?# | | ?????????? z ;#????????## ##???# | | ???????????# ;#?????????## ##????# | | ???????????### #### ##??????????###?????? | | ?????????????#####???## ##???????????????????? | | ??????????????????????## #;#????????????????????? | | ???????????????????????###?##????????????????????? | | ?????????????????????????????????????????????????? | | | | | | | | | | | | | | | | | | | | | | | | | | | | | | | | | +----------------------------------------------------+ Best States ------------- Heat Dissipation 48 Energy Generation 31 Energy Capacity 1865 Matter Stores 300 Matter Capacity 300 Sight Range 20 Robot Scan Range 20 Terrain Scan Range 20 Terrain Scan Density 10 Jamming Range 16 Corruption Prevention 20 Armor Coverage 1200 Propulsion Shielding 33 Evasion (%) 61 Targeting Accuracy 6 Recoil Reduction 2 Defensive Hacking 14 Item Schematics ----------------- Hcp. Storage Unit | -10/Mines | Hacked Lrg. Storage Unit | -10/Mines | Hacked Adv. Transmission Jammer | -8/Materials | Scanalyzed Imp. Flight Unit | -8/Storage | Hacked Imp. VTOL Module | -7/Factory | Hacked Adv. Signal Interpreter | -7/Factory | Hacked Adv. Sensor Array | -7/Factory | Hacked Lrn. Sensor Array | -7/Factory | Hacked Humpback | -7/Factory | Scanalyzed Imp. Cooling System | -7/Factory | Scanalyzed Impulse Thruster | -7/Factory | Scanalyzed Cld. Particle Cannon | -7/Factory | Scanalyzed Imp. Armor Integrity Analyzer | -7/Factory | Scanalyzed Cld. Deuterium Engine | -7/Factory | Scanalyzed Riot Gun | -7/Zion | Free Hvy. Riot Gun | -7/Zion | Free Battle Cannon | -7/Zion | Free Slug Cannon | -7/Zion | Free Flamer | -7/Zion | Free Enh. Flamer | -7/Zion | Free Plasma Flamer | -7/Zion | Free Robot Schematics ------------------ None Fabricated ------------ Lrn. Sensor Array | x1 | -7/Factory Lrn. Sensor Array | x1 | -7/Factory Imp. VTOL Module | x1 | -7/Factory Imp. VTOL Module | x1 | -7/Factory Impulse Thruster | x2 | -7/Factory | Preloaded Alien Tech Used ----------------- Core Expander Achievements -------------- None Challenges ------------ None Game ------ Seed PotentialSurveybotTerminator Manual? 0 Play Time 02:58:09 Cumulative 228.3 hours Start 2021.06.07 @ 14:05:36 End 2021.06.07 @ 18:49:33 Sessions 1 Manual Loads 0 Difficulty Rogue Special Mode None Game No. 157 Rogue 157 Adventurer 0 Explorer 0 Win Type - Total 4 Types 4/0/0/0/0/0/0/0/0 Lore% 48 Gallery% 71 Achievement% 54 Wizard Run 0 Options --------- ASCII 0 Keyboard 0 Movement Numpad Keybinds 0 Fullscreen 2 Font 18/TerminusBold Map View 76x50 Tactical HUD 1 Map Filters NONE Filters NONE Steam 1 RUN: efc59294-8c59-435c-a8b3-79a8c3c472bd